lending/lending_fUSD_20260110
["ID","MTS","AMOUNT","RATE_DAILY","PERIOD"]
[401210057,1768045851824,-150.0,0.0001755,2]
[401210058,1768045851842,-150.0,0.0001755,2]
[401210059,1768045851855,-318.35,0.00017555,2]
[401210060,1768045851868,-561.2,0.00017557,2]
[401210061,1768045851883,-260.75602621,0.00017564,2]
[401210062,1768045851895,-252.68743637,0.00017564,2]
[401210063,1768045851908,-188.04348929,0.00017564,2]
[401210064,1768045851921,-177.21892515,0.00017564,2]
[401210065,1768045851933,-150.0,0.00017576,2]
[401210066,1768045851947,-150.0,0.0001758,2]
[401210067,1768045851960,-260.75602621,0.00017582,2]
[401210068,1768045851976,-252.68743637,0.00017582,2]
[401210069,1768045851988,-188.04348929,0.00017582,2]
[401210070,1768045852001,-177.21892515,0.00017582,2]
[401210071,1768045852014,-150.0,0.00017585,2]
[401210072,1768045852027,-10861.64380407,0.00017589,2]
[401210073,1768045852041,-260.75602621,0.000176,2]
[401210074,1768045852053,-252.68743637,0.000176,2]
[401210075,1768045852065,-188.04348929,0.000176,2]
[401210076,1768045852077,-177.21892515,0.000176,2]
[401210077,1768045852090,-1690.18,0.00017601,2]
[401210078,1768045852103,-150.0,0.0001761,2]
[401210079,1768045852115,-150.0,0.00017612,2]
[401210080,1768045852129,-1000.0,0.00017615,2]
[401210081,1768045852143,-260.75602621,0.00017618,2]
[401210082,1768045852156,-252.68743637,0.00017618,2]
[401210083,1768045852169,-188.04348929,0.00017618,2]
[401210084,1768045852182,-177.21892515,0.00017618,2]
[401210085,1768045852195,-561.2,0.0001763,2]
[401210086,1768045852210,-260.75602621,0.00017636,2]
[401210087,1768045852222,-252.68743637,0.00017636,2]
[401210088,1768045852234,-188.04348929,0.00017636,2]
[401210089,1768045852247,-177.21892515,0.00017636,2]
[401210090,1768045852260,-150.0,0.0001764,2]
[401210091,1768045852273,-150.0,0.0001764,2]
[401210092,1768045852285,-150.0,0.0001764,2]
[401210093,1768045852298,-10537.80982193,0.0001764,2]
[401210094,1768045852311,-150.0,0.00017647,2]
[401210095,1768045852324,-150.0,0.00017654,2]
[401210096,1768045852337,-260.75602621,0.00017655,2]
[401210097,1768045852350,-252.68743637,0.00017655,2]
[401210098,1768045852362,-188.04348929,0.00017655,2]
[401210099,1768045852374,-177.21892515,0.00017655,2]
[401210100,1768045852388,-150.0,0.0001767,2]
[401210101,1768045852401,-500.0,0.00017671,2]
[401210102,1768045852416,-260.75602621,0.00017673,2]
[401210103,1768045852430,-252.68743637,0.00017673,2]
[401210104,1768045852443,-188.04348929,0.00017673,2]
[401210105,1768045852455,-177.21892515,0.00017673,2]
[401210106,1768045852467,-162.0,0.0001768,2]
[401210107,1768045852480,-850.0,0.0001768,2]
[401210108,1768045852493,-150.0,0.00017682,2]
[401210109,1768045852505,-311.0,0.0001769,2]
[401210110,1768045852519,-260.75602621,0.00017691,2]
[401210111,1768045852531,-252.68743637,0.00017691,2]
[401210112,1768045852545,-188.04348929,0.00017691,2]
[401210113,1768045852557,-177.21892515,0.00017691,2]
[401210114,1768045852569,-1887.20841984,0.00017693,2]
[401210115,1768045852582,-150.0,0.000177,2]
[401210116,1768045852595,-1000.0,0.000177,2]
[401210117,1768045852606,-561.2,0.00017704,2]
[401210118,1768045852619,-1000.0,0.00017709,2]
[401210119,1768045852632,-260.75602621,0.00017709,2]
[401210120,1768045852645,-252.68743637,0.00017709,2]
[401210121,1768045852657,-188.04348929,0.00017709,2]
[401210122,1768045852669,-177.21892515,0.00017709,2]
[401210123,1768045852682,-311.0,0.00017713,2]
[401210124,1768045852694,-150.0,0.00017718,2]
[401210125,1768045852707,-150.0,0.00017723,2]
[401210126,1768045852720,-260.75602621,0.00017727,2]
[401210127,1768045852733,-252.68743637,0.00017727,2]
[401210128,1768045852745,-188.04348929,0.00017727,2]
[401210129,1768045852757,-177.21892515,0.00017727,2]
[401210130,1768045852770,-150.0,0.0001773,2]
[401210131,1768045852783,-7554.21886386,0.0001773,2]
[401210132,1768045852795,-1400.0,0.00017734,7]
[401210133,1768045852808,-260.75602621,0.00017745,2]
[401210134,1768045852821,-252.68743637,0.00017745,2]
[401210135,1768045852833,-188.04348929,0.00017745,2]
[401210136,1768045852846,-177.21892515,0.00017745,2]
[401210137,1768045852858,-870.273,0.00017747,2]
[401210138,1768045852871,-150.0,0.00017753,2]
[401210139,1768045852884,-334.5472959,0.00017758,2]
[401210140,1768045852896,-151.0,0.00017758,2]
[401210141,1768045852911,-642.94,0.00017758,2]
[401210142,1768045852924,-150.0,0.0001776,2]
[401210143,1768045852937,-150.0,0.0001776,2]
[401210144,1768045852949,-260.75602621,0.00017764,2]
[401210145,1768045852962,-252.68743637,0.00017764,2]
[401210146,1768045852975,-188.04348929,0.00017764,2]
[401210147,1768045852987,-177.21892515,0.00017764,2]
[401210148,1768045853000,-150.0,0.00017775,2]
[401210149,1768045853015,-561.2,0.00017778,2]
[401210150,1768045853028,-311.0,0.00017779,2]
[401210151,1768045853041,-260.75602621,0.00017782,2]
[401210152,1768045853054,-252.68743637,0.00017782,2]
[401210153,1768045853067,-188.04348929,0.00017782,2]
[401210154,1768045853080,-177.21892515,0.00017782,2]
[401210155,1768045853094,-150.0,0.00017788,2]
[401210156,1768045853107,-150.0,0.0001779,2]
[401210157,1768045853120,-150.0,0.00017792,2]
[401210158,1768045853133,-260.75602621,0.000178,2]
[401210159,1768045853145,-252.68743637,0.000178,2]
[401210160,1768045853158,-188.04348929,0.000178,2]
[401210161,1768045853170,-177.21892515,0.000178,2]
[401210162,1768045853184,-1000.0,0.000178,2]
[401210163,1768045853196,-500.0,0.00017808,2]
[401210164,1768045853209,-207.26988174,0.00017808,2]
[401210165,1768045853221,-260.75602621,0.00017818,2]
[401210166,1768045853234,-252.68743637,0.00017818,2]
[401210167,1768045853247,-188.04348929,0.00017818,2]
[401210168,1768045853258,-177.21892515,0.00017818,2]
[401210169,1768045853271,-150.0,0.0001782,2]
[401210170,1768045853283,-4000.0,0.0001782,2]
[401210171,1768045853295,-4000.0,0.0001782,2]
[401210172,1768045853307,-159.35537069,0.0001782,2]
[401210173,1768045853321,-150.0,0.00017824,2]
[401210174,1768045853332,-500.0,0.00017829,2]
[401210175,1768045853344,-24666.13896743,0.0001783,2]
[401210176,1768045853356,-4000.0,0.0001783,2]
[401210177,1768045853368,-260.75602621,0.00017836,2]
[401210178,1768045853380,-252.68743637,0.00017836,2]
[401210179,1768045853392,-188.04348929,0.00017836,2]
[401210180,1768045853404,-177.21892515,0.00017836,2]
[401210181,1768045853415,-150.0,0.0001785,2]
[401210182,1768045853427,-561.2,0.00017852,2]
[401210183,1768045853439,-260.75602621,0.00017855,2]
[401210184,1768045853451,-252.68743637,0.00017855,2]
[401210185,1768045853464,-188.04348929,0.00017855,2]
[401210186,1768045853475,-177.21892515,0.00017855,2]
[401210187,1768045853487,-200.0,0.00017855,2]
[401210188,1768045853499,-2000.0,0.00017856,2]
[401210189,1768045853511,-200.0,0.00017856,2]
[401210190,1768045853522,-200.0,0.00017856,2]
[401210191,1768045853535,-150.0,0.00017859,2]
[401210192,1768045853547,-4000.0,0.0001786,2]
[401210193,1768045853560,-150.0,0.00017862,2]
[401210194,1768045853572,-500.0,0.00017863,2]
[401210195,1768045853584,-260.75602621,0.00017873,2]
[401210196,1768045853596,-252.68743637,0.00017873,2]
[401210197,1768045853607,-188.04348929,0.00017873,2]
[401210198,1768045853619,-177.21892515,0.00017873,2]
[401210199,1768045853630,-1690.18,0.00017875,2]
[401210200,1768045853643,-150.0,0.0001788,2]
[401210201,1768045853655,-150.0,0.0001788,2]
[401210202,1768045853667,-4000.0,0.0001788,2]
[401210203,1768045853679,-260.75602621,0.00017891,2]
[401210204,1768045853692,-252.68743637,0.00017891,2]
[401210205,1768045853702,-188.04348929,0.00017891,2]
[401210206,1768045853711,-177.21892515,0.00017891,2]
[401210207,1768045853720,-25000.0,0.00017891,3]
[401210208,1768045853731,-150.0,0.00017894,2]
[401210209,1768045854239,-10000.0,0.000179,2]
[401210210,1768045854276,-1740.0035,0.000179,2]
[401210211,1768045854306,-25000.0,0.000179,3]
[401210212,1768045854321,-591.38897096,0.000179,2]
[401210213,1768045854331,-6228.92016198,0.000179,3]
[401210214,1768045854341,-1173.69062044,0.000179,2]
[401210215,1768045854350,-1173.69062044,0.000179,2]
[401210216,1768045854359,-1173.69062044,0.000179,2]
[401210217,1768045854368,-1173.69062044,0.000179,2]
[401210218,1768045854377,-1173.69062044,0.000179,2]
[401210219,1768045854387,-418.08579202,0.000179,2]
[401210220,1768045854399,-1173.69062044,0.000179,2]
[401210221,1768045854409,-1173.69062044,0.000179,2]
[401210222,1768045854419,-1173.69062044,0.000179,2]
[401210223,1768045854428,-1173.69062044,0.000179,2]
[401210224,1768045854437,-1173.69062044,0.000179,2]
[401210225,1768045854446,-1173.69062044,0.000179,2]
[401210226,1768045854460,-10861.64380407,0.000179,2]
[401210227,1768045854471,-1000.0,0.000179,2]
[401210228,1768045854482,-179.38897292,0.000179,3]
[401210229,1768045854498,-1349.09797668,0.000179,2]
[401210230,1768045854509,-1887.20841984,0.000179,2]
[401210231,1768045854521,-27210.80105031,0.000179,2]
[401210232,1768045854531,-3039.43303365,0.000179,2]
[401210233,1768045854541,-8116.0,0.000179,2]
[401210234,1768045854552,-260.75602621,0.00017909,2]
[401210235,1768045854570,-252.68743637,0.00017909,2]
[401210236,1768045854583,-188.04348929,0.00017909,2]
[401210237,1768045854593,-177.21892515,0.00017909,2]
[401210238,1768045854611,-150.0,0.0001791,2]
[401210239,1768045854628,-4000.0,0.0001791,2]
[401210240,1768045854638,-500.0,0.00017918,2]
[401210241,1768045854648,-561.2,0.00017926,2]
[401210242,1768045854659,-201.93286099,0.00017927,2]
[401210243,1768045854669,-260.75602621,0.00017927,2]
[401210244,1768045854679,-252.68743637,0.00017927,2]
[401210245,1768045854691,-188.04348929,0.00017927,2]
[401210246,1768045854702,-177.21892515,0.00017927,2]
[401210247,1768045854712,-200.0,0.00017929,2]
[401210248,1768045854723,-150.0,0.00017929,2]
[401210249,1768045854732,-150.0,0.00017931,2]
[401210250,1768045854742,-150.0,0.0001794,2]
[401210251,1768045854751,-260.75602621,0.00017945,2]
[401210252,1768045854760,-252.68743637,0.00017945,2]
[401210253,1768045854770,-188.04348929,0.00017945,2]
[401210254,1768045854779,-177.21892515,0.00017945,2]
[401210255,1768045854789,-181.00537575,0.00017946,2]
[401210256,1768045854798,-260.75602621,0.00017964,2]
[401210257,1768045854808,-252.68743637,0.00017964,2]
[401210258,1768045854817,-188.04348929,0.00017964,2]
[401210259,1768045854827,-177.21892515,0.00017964,2]
[401210260,1768045854841,-150.0,0.00017965,2]
[401210261,1768045854851,-587.0,0.00017966,2]
[401210262,1768045854860,-150.0,0.0001797,2]
[401210263,1768045854870,-500.0,0.0001797,2]
[401210264,1768045854880,-500.0,0.0001797,2]
[401210265,1768045854890,-500.0,0.0001797,2]
[401210266,1768045854899,-500.0,0.00017972,2]
[401210267,1768045854909,-303.0,0.00017973,2]
[401210268,1768045854919,-610.19552731,0.00017973,2]
[401210269,1768045854928,-500.0,0.00017973,2]
[401210270,1768045854937,-500.0,0.00017973,2]
[401210271,1768045854947,-191.10319937,0.00017973,2]
[401210272,1768045854957,-501.2767774,0.00017973,2]
[401210273,1768045854966,-500.0,0.00017973,2]
[401210274,1768045854977,-500.0,0.00017973,2]
[401210275,1768045854988,-500.0,0.00017973,2]
[401210276,1768045854998,-500.0,0.00017973,2]
[401210277,1768045855008,-500.0,0.00017973,2]
[401210278,1768045855017,-433.9562915,0.00017973,2]
[401210279,1768045855027,-500.0,0.00017973,2]
[401210280,1768045855036,-500.0,0.00017973,2]
[401210281,1768045855047,-500.0,0.00017973,2]
[401210282,1768045855056,-500.0,0.00017973,2]
[401210283,1768045855066,-500.0,0.00017973,2]
[401210284,1768045855079,-500.0,0.00017973,2]
[401210285,1768045855090,-500.0,0.00017973,2]
[401210286,1768045855100,-500.0,0.00017973,2]
[401210287,1768045855112,-500.0,0.00017973,2]
[401210288,1768045855123,-500.0,0.00017973,2]
[401210289,1768045855134,-500.0,0.00017973,2]
[401210290,1768045855144,-641.77796518,0.00017973,2]
[401210291,1768045855154,-260.97339631,0.00017973,2]
[401210292,1768045855165,-500.0,0.00017973,2]
[401210293,1768045855175,-500.0,0.00017973,2]
[401210294,1768045855184,-300.29995774,0.00017973,2]
[401210295,1768045855193,-500.0,0.00017973,2]
[401210296,1768045855202,-500.0,0.00017973,2]
[401210297,1768045855212,-500.0,0.00017973,2]
[401210298,1768045855222,-500.0,0.00017973,2]
[401210299,1768045855232,-150.34167383,0.00017973,2]
[401210300,1768045855241,-500.0,0.00017973,2]
[401210301,1768045855251,-500.0,0.00017973,2]
[401210302,1768045855260,-500.0,0.00017973,2]
[401210303,1768045855270,-500.0,0.00017973,2]
[401210304,1768045855279,-500.0,0.00017973,2]
[401210305,1768045855288,-500.0,0.00017973,2]
[401210306,1768045855298,-500.0,0.00017973,2]
[401210307,1768045855308,-500.0,0.00017973,2]
[401210308,1768045855318,-500.85151996,0.00017973,2]
[401210309,1768045855328,-500.0,0.00017973,2]
[401210310,1768045855337,-500.0,0.00017973,2]
[401210311,1768045855346,-500.0,0.00017973,2]
[401210312,1768045855356,-500.0,0.00017973,2]
[401210313,1768045855365,-588.0072514,0.00017973,2]
[401210314,1768045855375,-500.0,0.00017973,2]
[401210315,1768045855384,-500.0,0.00017973,2]
[401210316,1768045855394,-571.47009533,0.00017973,2]
[401210317,1768045855404,-150.0,0.00017973,2]
[401210318,1768045855413,-150.0,0.00017973,2]
[401210319,1768045855424,-260.75602621,0.00017982,2]
[401210320,1768045855434,-252.68743637,0.00017982,2]
[401210321,1768045855444,-188.04348929,0.00017982,2]
[401210322,1768045855456,-177.21892515,0.00017982,2]
[401210323,1768045855466,-500.0,0.00017982,2]
[401210324,1768045855475,-500.0,0.00017988,2]
[401210325,1768045855485,-234.0,0.0001799,2]
[401210326,1768045855495,-958.79934337,0.0001799,2]
[401210327,1768045855505,-958.79934337,0.0001799,2]
[401210328,1768045855515,-11972.8041339,0.00017991,2]
[401210329,1768045855525,-997.7336779,0.00017991,2]
[401210330,1768045855534,-1006.5165,0.00017999,2]
[401210331,1768045855544,-11563.77530563,0.00017999,2]
[401210332,1768045855553,-300.0,0.00017999,2]
[401210333,1768045855563,-300.0,0.00017999,2]
[401210334,1768045855572,-176.95699484,0.00017999,2]
[401210335,1768045855582,-300.0,0.00017999,2]
[401210336,1768045855591,-300.0,0.00017999,2]
[401210337,1768045855600,-666.0,0.00017999,2]
[401210338,1768045855610,-500.0,0.00017999,2]
[401210339,1768045855619,-359.11221161,0.00017999,2]
[401210340,1768045855628,-606.90810945,0.00017999,2]
[401210341,1768045855637,-500.0,0.00017999,2]
[401210342,1768045855647,-215.42109475,0.00017999,2]
[401210343,1768045855656,-500.0,0.00017999,2]
[401210344,1768045855666,-500.0,0.00017999,2]
[401210345,1768045855675,-500.0,0.00017999,2]
[401210346,1768045855685,-500.0,0.00017999,2]
[401210347,1768045855695,-150.79476632,0.00017999,2]
[401210348,1768045855704,-196.21798024,0.00018,2]
[401210349,1768045855713,-260.75602621,0.00018,2]
[401210350,1768045855723,-252.68743637,0.00018,2]
[401210351,1768045855732,-188.04348929,0.00018,2]
[401210352,1768045855742,-223.10788253,0.00018,2]
[401210353,1768045855752,-298.52493072,0.00018,2]
[401210354,1768045855762,-178.17676299,0.00018,2]
[401210355,1768045855771,-231.22039699,0.00018,2]
[401210356,1768045855781,-157.59943203,0.00018,2]
[401210357,1768045855795,-247.12115074,0.00018,2]
[401210358,1768045855806,-252.12379273,0.00018,2]
[401210359,1768045855820,-177.21892515,0.00018,2]
[401210360,1768045855831,-1676777.42206831,0.00018,2]
[401210361,1768045855933,-151.0,0.00015603,2]
[401210362,1768045855952,-151.0,0.00015603,2]
[401210363,1768045855963,-814.26211943,0.00016806,2]
[401210364,1768045855973,-19783.73788057,0.00018,2]
[401210365,1768045856106,-2392.52408302,0.00018,2]
[401210366,1768045856117,-66346.11169507,0.00018,2]
[401210367,1768045856129,-530.23719591,0.00018,2]
[401210368,1768045856140,-3416.7,0.00018,2]
[401210369,1768045856198,2604.08287691,0.000149,2]
[401210370,1768045877508,500.0,0.00014999,2]
[401210371,1768045877886,500.0,0.00014999,2]
[401210372,1768045878272,500.0,0.00014999,2]
[401210373,1768045883970,500.0,0.00014999,2]
[401210374,1768045884360,500.0,0.00014999,2]
[401210375,1768045884895,500.0,0.00014999,2]
[401210376,1768045884942,500.0,0.00014999,2]
[401210377,1768045884994,500.0,0.00014999,2]
[401210378,1768045885048,521.81817087,0.00014999,2]
[401210379,1768045885788,500.0,0.00014999,2]
[401210380,1768045885832,500.0,0.00014999,2]
[401210381,1768045885870,500.0,0.00014999,2]
[401210382,1768045885916,500.0,0.00014999,2]
[401210383,1768045885985,500.0,0.00014999,2]
[401210384,1768045886022,374.10895222,0.00014999,2]
[401210385,1768045886046,125.89104778,0.00014999,2]
[401210386,1768045886083,500.0,0.00014999,2]
[401210387,1768045886121,500.0,0.00014999,2]
[401210388,1768045886159,500.0,0.00014999,2]
[401210389,1768045886199,500.0,0.00014999,2]
[401210390,1768045886243,500.0,0.00014999,2]
[401210391,1768045886285,500.0,0.00014999,2]
[401210392,1768045886322,477.23804358,0.00014999,2]
[401210393,1768045886360,500.0,0.00014999,2]
[401210394,1768045886403,500.0,0.00014999,2]
[401210395,1768045886441,500.0,0.00014999,2]
[401210396,1768045886480,500.0,0.00014999,2]
[401210397,1768045886518,500.0,0.00014999,2]
[401210398,1768045886551,500.0,0.00014999,2]
[401210399,1768045886588,500.0,0.00014999,2]
[401210400,1768045886636,500.0,0.00014999,2]
[401210401,1768045886693,500.0,0.00014999,2]
[401210402,1768045886736,500.0,0.00014999,2]
[401210403,1768045886776,500.0,0.00014999,2]
[401210404,1768045886820,500.0,0.00014999,2]
[401210405,1768045886868,396.88090864,0.00014999,2]
[401210406,1768045886899,103.11909136,0.00014999,2]
[401210407,1768045886942,500.0,0.00014999,2]
[401210408,1768045886988,500.0,0.00014999,2]
[401210409,1768045910052,500.0,0.00014999,2]
[401210410,1768045933708,333.78784265,0.000202,30]
[401210411,1768046378679,2200.0,0.000226,120]
[401210412,1768046457333,151.0,0.00014999,2]
[401210413,1768046459490,151.0,0.00014999,2]
[401210414,1768046459534,649.45173123,0.00014999,2]
[401210415,1768046460308,209.35171076,0.00014999,2]
[401210416,1768046460343,324.72586562,0.00014999,2]
[401210417,1768046461497,162.36293281,0.00014999,2]
[401210418,1768046602279,-300.0,0.0001517,2]
[401210419,1768046602310,-1200.0,0.0001517,2]
[401210421,1768046634911,-195.0,0.00015171,2]
[401210422,1768046634945,-300.0,0.00015171,2]
[401210423,1768046745552,-281.62,0.00015085,2]
[401210424,1768046745581,-300.0,0.0001517,2]
[401210425,1768046745612,-1200.0,0.0001517,2]
[401210426,1768046791198,-198.32576637,0.00015171,2]
[401210427,1768046858878,-6805.01,0.00015038,2]
[401210428,1768046858913,-3708.4,0.00015038,2]
[401210429,1768046858936,-2583.21,0.00015038,2]
[401210430,1768046873955,-301.67423363,0.00015171,2]
[401210431,1768046873985,-276.0,0.00015171,2]
[401210432,1768046874014,-500.0,0.00015171,2]
[401210433,1768046874043,-500.0,0.00015171,2]
[401210434,1768046874072,-498.0409344,0.00015171,2]
[401210435,1768046874101,-162.36293281,0.00015171,2]
[401210440,1768047031436,-195.0,0.00015172,2]
[401210441,1768047031447,-316.77732409,0.00015172,2]
[401210442,1768047031457,-1105.57262966,0.00015172,2]
[401210443,1768047031472,-94.42737034,0.00015172,2]
[401210444,1768047031482,-294.09456861,0.00015172,2]
[401210445,1768047031524,-5.90543139,0.00015172,2]
[401210446,1768047031534,-968.15334217,0.00015172,2]
[401210447,1768047031548,-231.84665783,0.00015172,2]
[401210448,1768047031558,-256.56334217,0.00015172,2]
[401210449,1768047031569,-43.43665783,0.00015172,2]
[401210450,1768047031579,-276.0,0.00015172,2]
[401210451,1768047031588,-329.39477102,0.00015173,2]
[401210452,1768047031613,-170.60522898,0.00015173,2]
[401210453,1768047031622,-139.89477102,0.00015173,2]
[401210454,1768047031634,-360.10522898,0.00015173,2]
[401210455,1768047031643,-492.95643075,0.00015173,2]
[401210456,1768047031655,-7.04356925,0.00015173,2]
[401210457,1768047031665,-500.0,0.00015173,2]
[401210458,1768047031674,-224.76565834,0.00015173,2]
[401210459,1768047031683,-157.41567269,0.00015173,2]
[401210460,1768047031695,-399.59810901,0.00015173,2]
[401210461,1768047031704,-500.0,0.00015173,2]
[401210462,1768047031714,-500.0,0.00015173,2]
[401210463,1768047031723,-500.0,0.00015173,2]
[401210464,1768047031732,-500.0,0.00015173,2]
[401210465,1768047031742,-175.29568891,0.00015173,2]
[401210466,1768047031751,-500.0,0.00015173,2]
[401210467,1768047031760,-500.0,0.00015173,2]
[401210468,1768047031770,-936.14,0.00015217,2]
[401210469,1768047031779,-3847.58550128,0.00015244,2]
[401210470,1768047031812,-1137.03440885,0.00015244,2]
[401210471,1768047031825,-529.74179822,0.00015244,2]
[401210472,1768047037594,-1469.67784056,0.00015244,2]
[401210473,1768047037606,-502.92045109,0.00015244,2]
[401210474,1768047037615,-1818.4,0.00015279,2]
[401210475,1768047037625,-246.61,0.00015479,2]
[401210476,1768047037634,-1050.9,0.00015608,2]
[401210477,1768047037647,-500.0,0.0001562,2]
[401210478,1768047037656,-500.0,0.0001562,2]
[401210479,1768047037666,-500.0,0.0001562,2]
[401210480,1768047037675,-500.0,0.0001562,2]
[401210481,1768047037685,-519.97189516,0.0001562,2]
[401210482,1768047037696,-347713.79662821,0.00015621,2]
[401210483,1768047037754,-2200.0,0.00015621,2]
[401210484,1768047037766,-2444.83323628,0.00015621,2]
[401210485,1768047037777,-3300.52680941,0.00015621,2]
[401210486,1768047037808,-20780.30506653,0.00015621,2]
[401210610,1768047039703,-1414.0434961,0.00015621,2]
[401210611,1768047039810,-3889.325472,0.00015621,2]
[401210612,1768047039822,-618257.16929147,0.00015621,2]
[401210613,1768047039832,-361.20476566,0.0001567,2]
[401210614,1768047039841,-1002.91261306,0.00015721,2]
[401210615,1768047039851,-713.20330559,0.00015721,2]
[401210616,1768047039860,-1000.97128658,0.00015721,2]
[401210617,1768047039869,-1031.53854137,0.00015721,2]
[401210618,1768047039878,-150.99,0.00015761,2]
[401210619,1768047039888,-187.78006525,0.00015761,2]
[401210620,1768047039898,-1001.92487185,0.00015769,2]
[401210621,1768047039907,-5705.02,0.0001577,2]
[401210622,1768047039916,-299.99,0.0001577,2]
[401210624,1768047039927,-2170.85,0.0001577,2]
[401210626,1768047039936,-1178.91,0.0001577,2]
[401210628,1768047039945,-150.99,0.0001577,2]
[401210630,1768047039954,-9999.99,0.0001577,2]
[401210631,1768047039963,-6159.61,0.0001577,2]
[401210633,1768047039972,-9999.99,0.0001577,2]
[401210634,1768047039981,-746.01,0.0001577,2]
[401210635,1768047039990,-44410.45,0.0001577,2]
[401210636,1768047039999,-151.0,0.00015836,2]
[401210637,1768047040009,-151.0,0.00015836,2]
[401210638,1768047040019,-151.0,0.00015845,2]
[401210639,1768047040028,-151.0,0.00015845,2]
[401210640,1768047040040,-180.49,0.00015851,2]
[401210641,1768047040050,-150.0,0.00016009,2]
[401210642,1768047040059,-500.0,0.00016009,2]
[401210643,1768047040068,-266.0,0.0001611,2]
[401210644,1768047040078,-1068.2411,0.0001611,2]
[401210645,1768047040087,-2950.03425897,0.00016118,2]
[401210646,1768047040097,-200.0,0.00016189,2]
[401210647,1768047040107,-639.19956225,0.000162,2]
[401210648,1768047040117,-150.0,0.000162,2]
[401210649,1768047040127,-150.0,0.000162,2]
[401210650,1768047040137,-150.0,0.000162,2]
[401210651,1768047040147,-150.0,0.000162,2]
[401210652,1768047040157,-213.87423394,0.000162,2]
[401210653,1768047040167,-226.31905987,0.000162,2]
[401210654,1768047040177,-150.0,0.000162,2]
[401210655,1768047040186,-223.10788253,0.000162,2]
[401210656,1768047040196,-150.0,0.000162,2]
[401210657,1768047040206,-150.0,0.000162,2]
[401210658,1768047040216,-150.0,0.000162,2]
[401210659,1768047040540,-150.0,0.000162,2]
[401210660,1768047040551,-150.0,0.000162,2]
[401210661,1768047040561,-150.0,0.000162,2]
[401210662,1768047040571,-150.0,0.000162,2]
[401210663,1768047040580,-150.0,0.000162,2]
[401210664,1768047040589,-200.0,0.000162,2]
[401210665,1768047040599,-200.0,0.000162,2]
[401210666,1768047040608,-92390.97,0.0001621,2]
[401210667,1768047040619,-213.87423394,0.00016218,2]
[401210668,1768047040628,-226.31905987,0.00016218,2]
[401210669,1768047040638,-150.0,0.00016221,2]
[401210670,1768047040648,-150.0,0.00016222,2]
[401210671,1768047040657,-150.0,0.00016229,2]
[401210672,1768047040668,-150.0,0.0001623,2]
[401210673,1768047040677,-213.87423394,0.00016236,2]
[401210674,1768047040687,-226.31905987,0.00016236,2]
[401210675,1768047040696,-150.0,0.00016241,2]
[401210676,1768047040706,-150.0,0.00016242,2]
[401210677,1768047040715,-150.0,0.00016243,2]
[401210678,1768047040725,-213.87423394,0.00016255,2]
[401210679,1768047040734,-226.31905987,0.00016255,2]
[401210680,1768047040745,-150.0,0.00016256,2]
[401210681,1768047040755,-150.0,0.00016258,2]
[401210682,1768047040765,-150.0,0.00016259,2]
[401210683,1768047040775,-150.0,0.00016262,2]
[401210684,1768047040785,-150.0,0.00016265,2]
[401210685,1768047040795,-150.0,0.00016267,2]
[401210686,1768047040805,-213.87423394,0.00016273,2]
[401210687,1768047040814,-226.31905987,0.00016273,2]
[401210688,1768047040823,-500.0,0.00016283,2]
[401210689,1768047040833,-150.0,0.00016283,2]